fUST/lending_fUST_20240119
["ID","MTS","AMOUNT","RATE_DAILY","PERIOD"]
[312127391,1705656641103,-688.01285151,0.0003,4]
[312127392,1705656641113,-464.33375401,0.0003,2]
[312127393,1705656641127,-243.97478798,0.0003,4]
[312127394,1705656641143,-239.21853809,0.0003,6]
[312127395,1705656641156,-154.87609912,0.0003,2]
[312127396,1705656641172,-1000.0,0.0003,30]
[312127397,1705656641184,-182.965166,0.0003,2]
[312127398,1705656641194,-182.965166,0.0003,2]
[312127399,1705656641209,-185.0,0.0003,2]
[312127400,1705656641220,-410.306782,0.0003,2]
[312127401,1705656641233,-410.306782,0.0003,2]
[312127404,1705656641248,-500.0,0.00030136,2]
[312127405,1705656641259,-153.0,0.00030137,2]
[312127406,1705656641271,-153.0,0.00030137,2]
[312127407,1705656641281,-198.957615,0.00030137,2]
[312127408,1705656641292,-153.0,0.00030137,2]
[312127409,1705656641304,-307.5351148,0.00030137,2]
[312127410,1705656641315,-306.0,0.00030137,2]
[312127411,1705656641326,-153.0,0.00030137,2]
[312127412,1705656641339,-399.4977477,0.00030137,2]
[312127413,1705656641355,-266.206495,0.00030137,2]
[312127414,1705656641367,-168.563298,0.00030137,2]
[312127415,1705656641378,-155.0,0.00030268,2]
[312127416,1705656641390,-500.0,0.00030273,2]
[312127417,1705656641405,-500.0,0.0003041,2]
[312127418,1705656641419,-500.0,0.00030547,2]
[312127419,1705656641429,-620.00550481,0.00030561,2]
[312127420,1705656641441,-620.01524053,0.00030561,2]
[312127421,1705656641454,-150.5,0.0003067,30]
[312127422,1705656641469,-150.5,0.0003068,30]
[312127423,1705656641484,-500.0,0.00030684,2]
[312127424,1705656641497,-150.5,0.0003069,30]
[312127425,1705656641509,-175.06,0.00030757,30]
[312127426,1705656641519,-533.0,0.00030757,30]
[312127427,1705656641529,-150.5,0.00030767,30]
[312127428,1705656641550,-533.0,0.00030767,30]
[312127429,1705656641572,-150.5,0.00030777,30]
[312127430,1705656641583,-157.43,0.00030777,30]
[312127431,1705656641594,-243.69,0.00030777,30]
[312127432,1705656641605,-533.0,0.00030777,30]
[312127433,1705656641621,-500.0,0.00030821,2]
[312127434,1705656641635,-500.0,0.00030958,2]
[312127435,1705656641657,-266.206495,0.00030959,2]
[312127436,1705656641678,-12246.33131918,0.00031,5]
[312127437,1705656641689,-238.08130584,0.00031,2]
[312127438,1705656641700,-1000.0,0.00031,31]
[312127439,1705656641713,-150.0,0.00031,4]
[312127440,1705656641723,-500.0,0.00031095,2]
[312127441,1705656641734,-500.0,0.00031232,2]
[312127442,1705656641746,-500.0,0.00031369,2]
[312127444,1705656641759,-500.0,0.00031506,2]
[312127445,1705656641771,-155.0,0.00031638,2]
[312127446,1705656641784,-500.0,0.00031643,2]
[312127447,1705656641802,-272.3724982,0.00031696,2]
[312127448,1705656641814,-5000.0,0.00031699,2]
[312127453,1705656642035,-195.20473695,0.000317,4]
[312127454,1705656642047,-154.87609912,0.000317,2]
[312127455,1705656642060,-283.06089695,0.000317,3]
[312127457,1705656642075,-432.8970436,0.000317,4]
[312127458,1705656642090,-742.34427754,0.000317,4]
[312127459,1705656642106,-261.40839953,0.000317,2]
[312127460,1705656642117,-334.24709862,0.000317,4]
[312127461,1705656642128,-171.0,0.000317,4]
[312127462,1705656642139,-3160.33,0.0003171,2]
[312127463,1705656642150,-182.965166,0.00031713,2]
[312127464,1705656642164,-182.965166,0.00031713,2]
[312127465,1705656642185,-410.306782,0.00031713,2]
[312127466,1705656642196,-410.306782,0.00031713,2]
[312127467,1705656642211,-50000.0,0.00031713,7]
[312127468,1705656642228,-5000.0,0.00031715,2]
[312127469,1705656642239,-5000.0,0.00031719,2]
[312127470,1705656642250,-5000.0,0.00031728,2]
[312127471,1705656642261,-500.0,0.0003178,2]
[312127472,1705656642272,-266.206495,0.00031781,2]
[312127473,1705656642290,-1206.23882079,0.00031793,2]
[312127474,1705656642301,-151.0,0.00031794,2]
[312127475,1705656642316,-151.0,0.000318,2]
[312127476,1705656642326,-151.0,0.000318,2]
[312127477,1705656642338,-151.0,0.000318,2]
[312127478,1705656642349,-182.965166,0.000318,2]
[312127479,1705656642363,-182.965166,0.000318,2]
[312127480,1705656642374,-182.965166,0.000318,2]
[312127481,1705656642385,-182.965166,0.000318,2]
[312127482,1705656642398,-410.306782,0.000318,2]
[312127483,1705656642408,-410.306782,0.000318,2]
[312127484,1705656642425,-410.306782,0.000318,2]
[312127485,1705656642440,-410.306782,0.000318,2]
[312127486,1705656642452,-500.0,0.00031917,2]
[312127487,1705656642463,-154.90705577,0.00032,4]
[312127488,1705656642474,-21398.78683882,0.00032,10]
[312127489,1705656642485,-3134.05888736,0.00032,2]
[312127490,1705656642503,-144583.34302775,0.00032,15]
[312127491,1705656642515,-320.17848416,0.00032,4]
[312127492,1705656642529,-151.0,0.00032,2]
[312127493,1705656642541,-182.965166,0.00032,2]
[312127494,1705656642552,-182.965166,0.00032,2]
[312127495,1705656642563,-150.0,0.00032,4]
[312127496,1705656642577,-410.306782,0.00032,2]
[312127497,1705656642588,-410.306782,0.00032,2]
[312127498,1705656642600,-154.4803495,0.00032018,7]
[312127499,1705656642822,-489.33866061,0.00032054,2]
[312127500,1705656642833,-620.00027524,0.00032089,2]
[312127501,1705656642846,-620.00076203,0.00032089,2]
[312127502,1705656642858,-156.94797163,0.00032222,7]
[312127503,1705656642871,-154.4803495,0.00032301,7]
[312127504,1705656642882,-168.563298,0.00032438,2]
[312127505,1705656642892,-102664.55567114,0.000325,20]
[312127506,1705656642905,-2386.67609396,0.000325,15]
[312127507,1705656642918,-151.0,0.000325,2]
[312127508,1705656642934,-150.0,0.000325,9]
[312127509,1705656642951,-182.965166,0.000325,2]
[312127510,1705656642962,-182.965166,0.000325,2]
[312127511,1705656642973,-410.306782,0.000325,2]
[312127512,1705656642986,-410.306782,0.000325,2]
[312127513,1705656642998,-154.4803495,0.00032529,7]
[312127514,1705656643009,-266.206495,0.00032603,2]
[312127515,1705656643020,-6000.0,0.000328,2]
[312127516,1705656643038,-6000.0,0.000328,2]
[312127517,1705656643057,-154.12939898,0.0003283,7]
[312127518,1705656643069,-450.39300333,0.00032876,4]
[312127519,1705656643083,-223.62863908,0.00032876,7]
[312127520,1705656643175,-476.30791853,0.00032876,7]
[312127521,1705656643190,-250.0,0.00032876,7]
[312127522,1705656643202,-190.19169914,0.00032876,7]
[312127523,1705656643214,-303.96684223,0.00032876,7]
[312127524,1705656643226,-157.76911621,0.00032876,7]
[312127526,1705656643236,-500.0,0.00032876,7]
[312127527,1705656643252,-500.11871831,0.00032876,7]
[312127528,1705656643269,-450.36302154,0.00032876,7]
[312127529,1705656643281,-500.0,0.00032876,7]
[312127530,1705656643291,-500.0,0.00032876,7]
[312127531,1705656643303,-500.0,0.00032876,7]
[312127532,1705656643313,-375.13478882,0.00032876,7]
[312127533,1705656643325,-500.0,0.00032876,7]
[312127534,1705656643334,-500.0,0.00032876,7]
[312127536,1705656643354,-500.0,0.00032876,7]
[312127538,1705656643365,-500.0,0.00032876,7]
[312127541,1705656643378,-275.29495805,0.00032876,7]
[312127543,1705656643389,-500.0,0.00032876,7]
[312127545,1705656643401,-500.0,0.00032876,7]
[312127547,1705656643412,-500.0,0.00032876,7]
[312127551,1705656643426,-6762.26543772,0.00033,4]
[312127552,1705656643439,-386.32476631,0.00033,2]
[312127554,1705656643458,-18360.01618873,0.00033,2]
[312127556,1705656643471,-170.0,0.00033,2]
[312127559,1705656643482,-172.0,0.00033,2]
[312127561,1705656643498,-155.0,0.00033008,2]
[312127563,1705656643508,-154.4803495,0.00033073,7]
[312127565,1705656643520,-1273.60431467,0.0003314,2]
[312127567,1705656643531,-330.54422927,0.00033148,4]
[312127569,1705656643542,-155.39601086,0.00033148,4]
[312127571,1705656643554,-599.20906908,0.00033204,2]
[312127573,1705656643566,-222.63658209,0.00033204,2]
[312127575,1705656643578,-181.68243624,0.00033204,2]
[312127577,1705656643591,-156.5804308,0.00033255,2]
[312127579,1705656643603,-157.98,0.00033263,2]
[312127581,1705656643616,-336.99364474,0.00033272,2]
[312127583,1705656643626,-223.59809342,0.00033272,2]
[312127584,1705656643637,-1000.0,0.0003329,10]
[312127586,1705656643648,-572.41381812,0.00033308,2]
[312127589,1705656643660,-1000.0,0.00033308,10]
[312127593,1705656643673,-686.42109558,0.00033326,2]
[312127595,1705656643687,-1000.0,0.00033326,10]
[312127596,1705656643698,-154.4803495,0.00033389,7]
[312127599,1705656643718,-163.0,0.00033393,2]
[312127600,1705656643728,-202.97,0.00033393,2]
[312127601,1705656643740,-266.206495,0.00033425,2]
[312127602,1705656643752,-151.0,0.0003359,2]
[312127603,1705656643762,-156.94797163,0.00033649,7]
[312127605,1705656643776,-620.00001376,0.00033694,2]
[312127606,1705656643788,-620.0000381,0.00033694,2]
[312127607,1705656643802,-156.94797163,0.00033704,7]
[312127608,1705656643815,-1000.0,0.00034,34]
[312127609,1705656643828,-1098.06332805,0.00034,3]
[312127611,1705656643838,-927.045051,0.00034,3]
[312127612,1705656643849,-250.0,0.00034246,7]
[312127613,1705656643859,-266.206495,0.00034247,2]
[312127614,1705656643871,-290.80999994,0.00034263,2]
[312127615,1705656643884,-50000.0,0.00034326,2]
[312127616,1705656643894,-61113.25415247,0.00034326,2]
[312127622,1705656644006,-10202.84952288,0.00034326,2]
[312127639,1705656648901,-155.62521216,0.00021,2]
[312127643,1705656769598,-164.57295354,0.0001722,2]
[312127644,1705656769641,-272.8638549,0.0001722,2]
[312127645,1705656769691,-382.85139327,0.0001722,2]
[312127646,1705656769729,-2102.11817883,0.0001722,2]
[312127647,1705656769769,-294.70821043,0.0001722,2]
[312127648,1705656769807,-620.37329655,0.00017221,2]
[312127649,1705656769847,-24947.51211248,0.00017221,2]
[312127650,1705656772519,3971.58661394,0.00017219,7]
[312127651,1705656843509,-1602.24051039,0.00017217,2]
[312127652,1705656843544,-3079.79580816,0.00017218,2]
[312127653,1705656843788,-154.87609912,0.00017219,2]
[312127654,1705656843822,-14678.66908548,0.00017219,2]
[312127655,1705656843851,-8757.15684933,0.0001722,2]
[312127656,1705656843884,-428.07492189,0.0001722,2]
[312127657,1705656843916,-272.42186695,0.0001722,2]
[312127658,1705656843943,-720.91602477,0.0001722,2]
[312127659,1705656843968,-686.94075913,0.0001722,2]
[312127660,1705656844006,-2299.90807478,0.00017221,2]
[312127661,1705656878477,2813.43161407,0.00017218,2]
[312127662,1705656886246,2001.52604925,0.00017218,2]
[312127663,1705656913051,1602.24051039,0.00017218,2]
[312127664,1705656931062,-310.0,0.00017219,2]
[312127665,1705656987381,1602.24051039,0.00017218,2]
[312127668,1705656998323,-245.04009963,0.00017219,2]
[312127669,1705656998367,-294.70821043,0.00017219,2]
[312127670,1705656998396,-2440.63161484,0.00017219,2]
[312127671,1705656998429,-500.0,0.00017219,2]
[312127672,1705656998471,-399.87965736,0.00017219,2]
[312127673,1705656998501,-228.74041774,0.00017219,2]
[312127675,1705657022127,154.9690062,0.00015497,2]
[312127676,1705657054040,-1220.04712136,0.0001722,5]
[312127677,1705657068851,-24900.0,0.00017034,2]
[312127678,1705657068900,-1602.24051039,0.00017219,2]
[312127679,1705657068933,-507.34292811,0.00017219,2]
[312127680,1705657068971,-503.98837536,0.00017219,2]
[312127681,1705657069007,-1292.89594537,0.00017219,2]
[312127682,1705657069048,-226.76758002,0.0001722,2]
[312127683,1705657069093,-97160.76466075,0.00017221,2]
[312127685,1705657128068,154.9690062,0.00015496,2]
[312127686,1705657166274,154.98450155,0.00015497,2]
[312127687,1705657221823,3971.58661394,0.00017026,7]
[312127688,1705657275030,334.688668,0.00016122,2]
[312127689,1705657282580,-178.65716453,0.00017021,2]
[312127690,1705657282615,-4811.28224285,0.00017021,2]
[312127691,1705657282657,-607.13204194,0.00017022,2]
[312127692,1705657282696,-1589.24944099,0.00017022,2]
[312127693,1705657282731,-760.31790163,0.00017023,2]
[312127694,1705657282774,-1602.24051039,0.00017024,2]
[312127695,1705657282816,-323.39599469,0.00017025,2]
[312127696,1705657282859,-11018.72470298,0.00017026,2]
[312127697,1705657348023,-12837.0,0.00017218,2]
[312127698,1705657366403,154.87609912,0.00015496,2]
[312127699,1705657368118,683.87536543,0.00015496,2]
[312127700,1705657382414,164.80033535,0.00015496,2]
[312127701,1705657388249,683.87536543,0.00015496,2]
[312127702,1705657404196,201.51623845,0.00015496,2]
[312127703,1705657417620,-155.0,0.0001712,2]
[312127704,1705657436102,154.9690062,0.00013947,2]
[312127707,1705657548218,3971.58661394,0.00017897,7]
[312127708,1705657598320,24900.0,0.00016218,2]
[312127710,1705657647122,-16.27962684,0.0001712,2]
[312127711,1705657647162,-294.70821043,0.00017209,2]
[312127712,1705657647196,-452.47030798,0.0001721,2]
[312127713,1705657647229,-2382.26644393,0.00017216,2]
[312127714,1705657651107,-2798.38522363,0.00017216,2]
[312127715,1705657651143,-3017.54053882,0.00017217,2]
[312127716,1705657651183,-2154.70535403,0.00017218,2]
[312127717,1705657747146,-1589.24944099,0.00017214,2]
[312127718,1705657747181,-323.39599469,0.00017215,2]
[312127719,1705657747235,-178.65716453,0.00017216,2]
[312127720,1705657747276,-13713.11572984,0.00017217,2]
[312127721,1705657747306,-5899.50187703,0.00017218,2]
[312127722,1705657747355,-2707.42562247,0.0001722,5]
[312127723,1705657747391,-5952.63319316,0.00017221,2]
[312127724,1705657747423,-873.86173983,0.00017235,2]
[312127725,1705657747463,-607.13204194,0.00017892,2]
[312127726,1705657747495,-2534.91567954,0.00017898,2]
[312127728,1705657748255,-1981.70697716,0.00017898,2]
[312127729,1705657748306,-200.0,0.00018078,2]
[312127730,1705657748334,-1113.91161195,0.000195,2]
[312127731,1705657748360,-1466.67664473,0.0001951,2]
[312127732,1705657748610,-280.0,0.00019886,2]
[312127733,1705657748650,-359.529414,0.00019915,2]
[312127734,1705657748775,-171.0,0.0002,2]
[312127735,1705657748814,-849.76694483,0.0002,2]
[312127736,1705657748840,-678.05962952,0.0002,2]
[312127737,1705657748886,-1229.89022015,0.0002,2]
[312127738,1705657748919,-154.87609912,0.00020999,2]
[312127739,1705657748953,-2083.05150517,0.00021,2]
[312127740,1705657748995,-391.0,0.00021874,7]
[312127741,1705657749045,-166.666666,0.00021918,2]
[312127742,1705657749080,-166.666666,0.00022431,2]
[312127743,1705657749127,-823.86653966,0.00022943,2]
[312127744,1705657749174,-166.666666,0.00022944,2]
[312127745,1705657749215,-522.10423591,0.00023421,5]
[312127746,1705657749248,-166.666666,0.00023456,2]
[312127747,1705657749295,-452.10708087,0.00023968,2]
[312127748,1705657749323,-294.70821043,0.00023968,2]
[312127749,1705657749369,-166.666666,0.00023969,2]
[312127750,1705657749398,-3971.58661394,0.00023978,7]
[312127751,1705657749428,-12836.99158186,0.00023979,2]
[312127752,1705657749466,-4011.58774012,0.00024,2]
[312127753,1705657749502,-200.0,0.00024062,7]
[312127754,1705657749533,-348.0,0.00024062,7]
[312127755,1705657749578,-151.96901512,0.000244,2]
[312127756,1705657749632,-151.96901512,0.000244,2]
[312127757,1705657749670,-151.96901512,0.000244,2]
[312127758,1705657749710,-151.96901512,0.000244,2]
[312127759,1705657749745,-151.96901512,0.000244,2]
[312127760,1705657749789,-151.96901512,0.000244,2]
[312127761,1705657749829,-151.96901512,0.000244,2]
[312127762,1705657749856,-151.96901,0.000244,2]
[312127763,1705657749892,-166.666666,0.00024482,2]
[312127764,1705657749921,-16896.23,0.00024646,3]
[312127765,1705657749948,-977.54301686,0.00024656,2]
[312127766,1705657750219,-4170.92659353,0.00024989,2]
[312127767,1705657750246,-1045.65136347,0.00025,2]
[312127768,1705657750275,-4719.78899734,0.00025,2]
[312127769,1705657750314,-1196.96135251,0.0002597,2]
[312127770,1705657750363,-166.80011479,0.00025971,2]
[312127771,1705657750618,-2101.09181353,0.00025972,2]
[312127772,1705657750676,-2712.0822543,0.00025982,2]
[312127773,1705657750727,-3955.54830897,0.00025993,2]
[312127774,1705657750766,-425.53656097,0.00025994,2]
[312127775,1705657750819,-1495.43736069,0.00026014,2]
[312127776,1705657750868,-4811.28224285,0.00026025,2]
[312127777,1705657750913,-164.49774557,0.00026025,2]
[312127778,1705657750981,-198.98525444,0.00026025,2]
[312127779,1705657751025,-4959.16437663,0.00026026,2]
[312127780,1705657751071,-620.02074283,0.000264,2]
[312127781,1705657751132,-200.0,0.00026468,15]
[312127782,1705657751172,-200.0,0.00026468,15]
[312127783,1705657751216,-368.0,0.00026468,15]
[312127784,1705657751270,-1595.01637802,0.00026847,2]
[312127785,1705657761141,-1887.40605875,0.00024998,2]
[312127786,1705657761193,-323.39599469,0.00026846,2]
[312127787,1705657761238,-823.86653966,0.00026846,2]
[312127788,1705657761278,-1888.99101156,0.00026847,2]
[312127789,1705657761306,-7295.31802445,0.00027,2]
[312127790,1705657761336,-309.75219824,0.00027365,2]
[312127791,1705657761377,-230.71907883,0.00027385,2]
[312127792,1705657761416,-521.84055297,0.00027385,2]
[312127793,1705657761668,-7534.0,0.00027385,2]
[312127794,1705657761705,-875.93915164,0.00027393,2]
[312127795,1705657761737,-286.22633212,0.00027393,2]
[312127796,1705657761765,-260.99609825,0.00027394,2]
[312127797,1705657761808,-13636.91051469,0.00027394,2]
[312127798,1705657761848,-272.42186695,0.00027395,2]
[312127799,1705657761877,-3128.22508425,0.00027395,2]
[312127800,1705657762118,-644.05484588,0.00027395,2]
[312127801,1705657762308,-322.95530787,0.00027395,2]
[312127802,1705657762352,-175.13584081,0.00027395,2]
[312127803,1705657762394,-1241.8968664,0.00027395,2]
[312127804,1705657762426,-264.03826997,0.00027395,2]
[312127805,1705657762706,-7999.96196843,0.00027396,2]
[312127806,1705657762966,-2854.38864282,0.00027525,2]
[312127807,1705657763215,-620.00103714,0.0002772,2]
[312127808,1705657763253,-155.0,0.00027798,2]
[312127809,1705657763285,-500.0,0.00027998,2]
[312127810,1705657763320,-500.0,0.00027998,2]
[312127811,1705657763360,-500.24201436,0.00027998,2]
[312127812,1705657763395,-157.76911621,0.00027998,2]
[312127813,1705657763428,-400.09497465,0.00027998,2]
[312127814,1705657763466,-500.0,0.00027998,2]
[312127815,1705657763517,-550.05391553,0.00027998,2]
[312127816,1705657763558,-500.0,0.00027998,2]
[312127817,1705657763597,-512.62459672,0.00027998,2]
[312127818,1705657763638,-506.61140371,0.00027998,2]
[312127819,1705657763670,-500.0,0.00027998,2]
[312127820,1705657763903,-190.19169914,0.00027998,2]
[312127821,1705657763933,-500.0,0.00027998,2]
[312127822,1705657763972,-500.0,0.00027998,2]
[312127823,1705657764009,-205.50674206,0.00027998,2]
[312127824,1705657764042,-500.0,0.00027998,2]
[312127825,1705657764077,-500.0,0.00027998,2]
[312127826,1705657764103,-500.0,0.00027998,2]
[312127827,1705657764138,-500.0,0.00027998,2]
[312127828,1705657764183,-500.0,0.00027998,2]
[312127829,1705657764228,-200.04748732,0.00027998,2]
[312127830,1705657764270,-500.0,0.00027998,2]
[312127831,1705657764300,-250.12100718,0.00027998,2]
[312127832,1705657764331,-491.1583833,0.00027998,2]
[312127833,1705657764834,2083.05150517,0.0002,2]
[312127834,1705657783366,941.06369479,0.0002,2]
[312127879,1705657832727,-1786.39569693,0.00024998,2]
[312127924,1705657841620,-6096.49087871,0.00024998,2]
[312127925,1705657841770,-7883.39063712,0.00024998,2]
[312127926,1705657841789,-868.50537945,0.00026382,2]
[312127928,1705657841817,-195.19726849,0.00026845,2]
[312127930,1705657841835,-873.86173983,0.0002794,2]
[312127933,1705657841858,-1589.24944099,0.0002794,2]
[312127934,1705657841881,-323.39599469,0.00027941,2]
[312127936,1705657841901,-151.69082327,0.00027942,2]
[312127939,1705657841935,-4719.78899734,0.00027996,2]
[312127941,1705657841959,-1045.65136347,0.00027997,2]
[312127943,1705657841980,-3744.32876,0.00027999,2]
[312127944,1705657841999,-290.08228321,0.00028,2]
[312127947,1705657842039,-376.619132,0.00028493,2]
[312127949,1705657842052,-155.39601086,0.00028787,2]
[312127951,1705657842079,-330.54422927,0.00028788,2]
[312127952,1705657842097,-1786.39569693,0.00028798,2]
[312127954,1705657842114,-497.78779237,0.00028799,5]
[312127956,1705657842137,-480.58047563,0.000288,3]
[312127958,1705657842156,-154.87609912,0.00029,2]
[312127960,1705657842174,-1879.41245692,0.00029105,2]
[312127962,1705657842196,-620.00005186,0.00029106,2]
[312127964,1705657842209,-200.0,0.00029115,15]
[312127965,1705657842237,-200.0,0.00029115,15]
[312127967,1705657842259,-200.0,0.00029115,15]
[312127969,1705657842278,-200.0,0.00029115,15]
[312127971,1705657842300,-275.0,0.00029115,15]
[312127973,1705657842322,-155.0,0.00029168,2]
[312127975,1705657842346,-307.5351148,0.00029178,2]
[312127977,1705657842373,-606.99127798,0.00029313,2]
[312127979,1705657842389,-154.87609912,0.00029313,10]
[312127981,1705657842408,-259.93145126,0.00029314,2]
[312127983,1705657842431,-153.0,0.00029315,2]
[312127990,1705657842540,-153.0,0.00029315,2]
[312127992,1705657842562,-153.0,0.00029315,2]
[312127994,1705657842582,-153.0000001,0.00029315,2]
[312127997,1705657842612,-153.0,0.00029315,2]
[312127999,1705657842626,-199.0432224,0.00029315,2]
[312128001,1705657842653,-153.0,0.00029315,2]
[312128002,1705657842676,-199.0432224,0.00029315,2]
[312128003,1705657842694,-199.0432224,0.00029315,2]
[312128004,1705657842715,-155.58298179,0.00029498,2]
[312128005,1705657842728,-307.41985958,0.00029498,2]
[312128006,1705657842747,-1252.74537918,0.00029498,2]
[312128008,1705657842791,-155.69029805,0.00029498,2]
[312128010,1705657842810,-876.838464,0.00029498,2]
[312128011,1705657842835,-823.86653966,0.00029498,2]
[312128012,1705657842857,-588.89361079,0.00029498,2]
[312128013,1705657842879,-1693.74494191,0.00029499,2]
[312128014,1705657842899,-219.93064841,0.00029499,2]
[312128016,1705657842934,-22008.50560272,0.000295,30]
[312128017,1705657842950,-152.07628289,0.00029772,2]
[312128018,1705657842970,-359.529414,0.00029872,2]
[312128019,1705657842993,-3143.98081065,0.000299,2]
[312128020,1705657843021,-14080.19,0.0002999,3]
[312128021,1705657843042,-4999.99,0.0003,2]
[312128022,1705657843066,-5000.0,0.0003,2]
[312128023,1705657843092,-5000.0,0.0003,2]
[312128024,1705657843112,-5000.0,0.0003,2]
[312128025,1705657843127,-3160.34,0.0003,2]
[312128026,1705657843143,-157.68168775,0.0003,4]
[312128027,1705657843187,-464.33375401,0.0003,2]
[312128028,1705657843210,-154.87609912,0.0003,2]
[312128029,1705657843242,-432.8970436,0.0003,4]
[312128030,1705657843265,-239.21853809,0.0003,6]
[312128031,1705657843519,-243.97478798,0.0003,4]
[312128032,1705657843538,-230.43340321,0.0003,4]
[312128033,1705657843564,-688.01285151,0.0003,4]
[312128034,1705657843580,-185.0,0.0003,2]
[312128035,1705657843606,-500.0,0.00030136,2]
[312128036,1705657843626,-168.563298,0.00030137,2]
[312128037,1705657843651,-288.681601,0.00030137,2]
[312128038,1705657843667,-500.0,0.00030273,2]
[312128039,1705657843682,-489.33866061,0.0003041,2]
[312128040,1705657843698,-155.0,0.00030538,2]
[312128041,1705657843718,-620.00000259,0.00030561,2]
[312128042,1705657843736,-288.681601,0.00030959,2]
[312128043,1705657843756,-238.08130584,0.00031,2]
[312128044,1705657843782,-12246.33131918,0.00031,5]
[312128045,1705657843797,-175.06,0.00031339,30]
[312128046,1705657843816,-150.5,0.00031349,30]
[312128047,1705657843841,-150.5,0.00031359,30]
[312128048,1705657843860,-272.3724973,0.00031696,2]
[312128049,1705657843876,-288.681601,0.00031781,2]
[312128050,1705657843896,-1206.23882079,0.00031793,2]
[312128051,1705657843924,-11051.97122078,0.000318,3]
[312128052,1705657844170,-152.07628289,0.00031808,2]
[312128053,1705657844193,-150.5,0.00031869,30]
[312128054,1705657844213,-533.0,0.00031869,30]
[312128055,1705657844238,-533.0,0.0003187,30]
[312128056,1705657844263,-150.5,0.00031879,30]
[312128057,1705657844284,-533.0,0.00031879,30]
[312128058,1705657844307,-533.0,0.0003188,30]
[312128059,1705657844322,-150.5,0.00031889,30]
[312128061,1705657844350,-533.0,0.00031889,30]
[312128062,1705657844368,-157.43,0.0003189,30]
[312128064,1705657844383,-533.0,0.0003189,30]
[312128065,1705657844400,-500.0,0.00031898,2]
[312128066,1705657844421,-500.0,0.00031898,2]
[312128067,1705657844436,-500.24201437,0.00031898,2]
[312128068,1705657844454,-225.38445172,0.00031898,2]
[312128069,1705657844467,-500.0,0.00031898,2]
[312128070,1705657844490,-500.0,0.00031898,2]
[312128071,1705657844513,-500.0,0.00031898,2]
[312128072,1705657844541,-330.03234932,0.00031898,2]
[312128073,1705657844569,-500.0,0.00031898,2]
[312128074,1705657844587,-500.0,0.00031898,2]
[312128075,1705657844609,-500.0,0.00031898,2]
[312128076,1705657844630,-530.87880326,0.00031898,2]
[312128077,1705657844644,-500.0,0.00031898,2]
[312128078,1705657844665,-3400.58,0.00031899,2]
[312128079,1705657844695,-3400.58,0.00031899,2]
[312128080,1705657844718,-3400.58,0.00031899,2]
[312128081,1705657844735,-3400.58,0.00031899,2]
[312128082,1705657844755,-3400.58,0.00031899,2]
[312128084,1705657844777,-3400.58,0.00031899,2]
[312128086,1705657844801,-3400.58,0.00031899,2]
[312128087,1705657844820,-3400.58,0.00031899,2]
[312128088,1705657844837,-3400.58,0.00031899,2]
[312128089,1705657844860,-3400.58,0.00031899,2]
[312128090,1705657844884,-223.62863908,0.00031899,4]
[312128091,1705657844904,-444.5540573,0.00031899,4]
[312128092,1705657844922,-365.26011049,0.00031899,4]
[312128093,1705657844945,-458.82253408,0.000319,3]
[312128094,1705657844965,-388883.85959445,0.000319,2]
[312128095,1705657844993,-10202.84952288,0.000319,2]
[312128106,1705657845906,-200.0,0.00026247,15]
[312128109,1705657845938,-280.0,0.00028872,15]
[312128110,1705657845959,-130.340678,0.00031759,15]
[312128112,1705657845981,-260.659322,0.00031759,15]
[312128114,1705657846004,-400.09497465,0.00031898,2]
[312128115,1705657846027,-205.49289926,0.000319,2]
[312128116,1705657846057,-2300.78589121,0.000319,2]
[312128118,1705657847072,-823.86653966,0.00027939,2]